Cogmind - Beta 13 @@@ ROGUE MODE // 2024.03.31 @ 23:00:43 Player: MasterLemons Result: Destroyed by as-97199 with Assembled Rifle Performance ------------- Evolutions (0) 0 Regions Visited (2) 400 Robots Destroyed (8) 40 Value Destroyed (208) 208 Prototype IDs (0) 0 Alien Tech Used (0) 0 Bonus (0) 0 TOTAL SCORE: 648 Bonus ------- None Cogmind --------- Core Integrity 0/250 Matter 297/300 Energy 264/265 System Corruption 1% Temperature Cool (22) Movement Core (250) Ox4 Location -10/Mines Parts ------- > --- POWER (1) -------- Improved Ion Engine > --- PROPULSION (2) --- (None) > --- UTILITY (2) ------ Small Storage Unit > --- WEAPON (2) ------- Assault Rifle > --- INVENTORY (8) ---- Ion Engine Improved Ion Engine Improved Ion Engine Assault Rifle Assault Rifle Assault Rifle Peak State ------------ > --- POWER ------------ Improved Ion Engine > --- PROPULSION ------- Light Treads Light Treads > --- UTILITY ---------- Improved Heat Sink Small Storage Unit > --- WEAPON ----------- Assault Rifle Assault Rifle > --- INVENTORY -------- Improved Ion Engine Improved Ion Engine [Rating: 10] Favorites ----------- Power Improved Ion Engine Engine Improved Ion Engine Propulsion Light Treads Treads Light Treads Utility Small Storage Unit Device Improved Heat Sink Storage Small Storage Unit Processor Signal Interpreter Weapon Assault Rifle Ballistic Gun Assault Rifle Build | -11 -10 -10 ------- Run | Yrd Mat Min Slots Evolved . | . . . Power . | . . . Propulsion . | . . . Utility . | . . . Weapon . | . . . Parts Attached 12 | 6 6 . Power 3 | 1 2 . Engine 3 | 1 2 . Core . | . . . Reactor . | . . . Propulsion 2 | 2 . . Treads 2 | 2 . . Leg . | . . . Wheel . | . . . Hover . | . . . Flight . | . . . Utility 3 | 1 2 . Device 1 | . 1 . Storage 1 | 1 . . Processor 1 | . 1 . Hackware . | . . . Protection . | . . . Artifact . | . . . Weapon 4 | 2 2 . Energy Gun . | . . . Energy Cannon . | . . . Ballistic Gun 4 | 2 2 . Ballistic Cannon . | . . . Launcher . | . . . Special Weapon . | . . . Impact Weapon . | . . . Slashing Weapon . | . . . Piercing Weapon . | . . . Special Melee Weapon . | . . . Unidentified Prototypes . | . . . Parts Lost 5 | . 1 4 Power 1 | . 1 . Propulsion 2 | . . 2 Utility 1 | . . 1 Weapon 1 | . . 1 Highest Loss Streak 4 | . 1 4 To Critical Strikes 1 | . . 1 Average Slot Usage (%) 95 | . 93 99 Engine 12 | . 12 14 Treads 28 | . 28 28 Device 2 | . 3 . Storage 14 | . 14 14 Processor 9 | . 6 13 Ballistic Gun 28 | . 28 28 Naked Turns . | . . . Heaviest Build 17 | 14 17 16 Greatest Support 40 | 40 40 40 Greatest Overweight (x) . | . . . Average Overweight (x) . | . . . Largest Inventory Capacity 8 | 8 8 8 Average Capacity 7 | 6 8 8 Most Carried 7 | 5 7 6 Average Carried 4 | 1 4 6 Final Capacity 8 | 8 8 8 Final Carried 6 | 1 6 6 Class Distribution -------------------- 100% | Mutant Dominant Class ---------------- Mutant | -10/Materials Mutant | -10/Mines Resources | -11 -10 -10 ----------- Run | Yrd Mat Min Matter Collected 483 | 211 254 18 Remotely . | . . . Salvage Created 252 | . 205 47 Parts 19 | . 13 6 Haulers Intercepted . | . . . Recyclers Shooed . | . . . Parts Field Recycled . | . . . Retrieved Matter . | . . . Parts Self-Destructed . | . . . Prevented . | . . . Kills | -11 -10 -10 ------- Run | Yrd Mat Min Combat Hostiles Destroyed 7 | . 4 3 Guns 7 | . 4 3 Classes Destroyed 3 | . 2 1 Watcher 1 | . 1 . Swarmer 3 | . . 3 Grunt 4 | . 4 . Best Kill Streak 3 | . 2 3 Combat Bots Only 3 | . 2 3 Max Kills in Single Turn 2 | . 1 2 Gunslinging . | . . . Exploded . | . . . Melee . | . . . Uniques/NPCs Destroyed . | . . . Combat | -11 -10 -10 -------- Run | Yrd Mat Min Hostile Shots Fired 78 | . 42 36 Missed 15 | . 8 7 Damage Taken 999 | . 469 530 Core 261 | . 83 178 Absorbed by Shields . | . . . Core Remaining (%) 100 | 100 . . Volleys Fired 32 | . 25 7 Largest 2 | . 2 2 Hottest 40 | . 40 40 Shots Fired 63 | . 50 13 Gun 63 | . 50 13 Cannon . | . . . Launcher . | . . . Special . | . . . Kinetic 63 | . 50 13 Thermal . | . . . Explosive . | . . . Electromagnetic . | . . . Robot Hit Streak 16 | . 16 2 Robot Miss Streak 6 | . 6 4 Penetration Max . | . . . Secondary Targets 1 | . . 1 Max Gunslinging Chain 1 | . . 1 Shots Hit Robots 39 | . 34 5 Core Hits 17 | . 12 5 Critical Kills . | . . . Critical Parts Destroyed 1 | . 1 . Critical Strikes 1 | . 1 . Destroy 1 | . 1 . Melee Attacks . | . . . Impact . | . . . Slashing . | . . . Piercing . | . . . Sneak Attacks . | . . . Combat Hostiles . | . . . Follow-up Attacks . | . . . Damage Inflicted 566 | . 455 111 Guns 566 | . 455 111 Cannons . | . . . Explosions . | . . . Melee . | . . . Ramming . | . . . Kinetic 566 | . 455 111 Thermal . | . . . Explosive . | . . . Electromagnetic . | . . . Impact . | . . . Slashing . | . . . Piercing . | . . . Highest Corruption 1 | . . 1 Average Corruption 1 | . . 1 Corruption Purged . | . . . Corruption Blocked . | . . . Overload Shots . | . . . Overflow Damage . | . . . Projectiles . | . . . Explosions . | . . . Melee . | . . . Knockbacks . | . . . Impact . | . . . Kinetic . | . . . Secondary . | . . . Self-Inflicted Damage . | . . . Shots . | . . . Rammed . | . . . Targets Rammed . | . . . Kicked . | . . . Crushed . | . . . Highest Temperature 28 | . 6 28 Average Temperature 6 | . 3 21 Received Heat Transfer 310 | . 270 40 Siege Activations . | . . . Robots Corrupted . | . . . Combat Hostiles . | . . . Parts Fried . | . . . Impact Corruptions . | . . . Robots Melted . | . . . Combat Hostiles . | . . . Parts Melted . | . . . Heat Transferred . | . . . Parts Sabotaged . | . . . Parts Stolen . | . . . Parts Stripped . | . . . Power Chain Reactions . | . . . Alert | -11 -10 -10 ------- Run | Yrd Mat Min Peak Influence 150 | . 150 78 Initial 8 | . . 8 Average 44 | . 60 30 Maximum Alert Level . | . . . Low Security (%) 100 | 100 100 100 Level 1 . | . . . Level 2 . | . . . Level 3 . | . . . Level 4 . | . . . Level 5 . | . . . High Security . | . . . Max Security . | . . . Squads Dispatched 1 | . 1 . Investigation . | . . . Extermination . | . . . Reinforcement 1 | . 1 . Assault . | . . . Garrison . | . . . Intercept . | . . . Searches Triggered . | . . . Construction Impeded . | . . . Haulers Reinforced . | . . . Active Scanning Responses . | . . . Cargo Convoy Interrupts . | . . . Stealth | -11 -10 -10 --------- Run | Yrd Mat Min Distress Signals . | . . . Communications Jammed . | . . . Distress Signals . | . . . Times Spotted 31 | . 12 19 Peak Tracking Total 16 | . 5 16 Tactical Retreats 2 | . 1 1 Traps | -11 -10 -10 ------- Run | Yrd Mat Min Traps Triggered 1 | . 1 . Indirectly . | . . . Trap Hack Attempts . | . . . Triggered . | . . . Disarmed . | . . . Reprogrammed . | . . . Reused . | . . . Traps Extracted . | . . . Installed . | . . . Triggered . | . . . Machines | -11 -10 -10 ---------- Run | Yrd Mat Min Machines Disabled . | . . . Max in Single Turn . | . . . Machines Repaired . | . . . Machines Dismantled . | . . . Machines Sabotaged . | . . . Overloaded Fab Kills . | . . . Hacking | -11 -10 -10 --------- Run | Yrd Mat Min Machines Accessed . | . . . Terminals . | . . . Fabricators . | . . . Repair Stations . | . . . Recycling Units . | . . . Scanalyzers . | . . . Garrison Access . | . . . Total Hacks . | . . . Successful . | . . . Failed . | . . . Catastrophic . | . . . Database Lockouts . | . . . Manual . | . . . Terminals . | . . . Fabricators . | . . . Repair Stations . | . . . Recycling Units . | . . . Scanalyzers . | . . . Garrison Access . | . . . Terminal Hacks . | . . . Fabricator Hacks . | . . . Repair Station Hacks . | . . . Recycling Unit Hacks . | . . . Scanalyzer . | . . . Garrison Access Hacks . | . . . Unauthorized Hacks . | . . . Terminals . | . . . Fabricators . | . . . Repair Stations . | . . . Recycling Units . | . . . Scanalyzers . | . . . Garrison Access . | . . . Data Cores Recovered . | . . . Used . | . . . Hacking Detections . | . . . Full Trace Events . | . . . Feedback Events . | . . . Feedback Blocked . | . . . Robot Schematics Acquired . | . . . Robots Built . | . . . Authchips . | . . . Time . | . . . Total Robot Build Rating . | . . . Part Schematics Acquired . | . . . Parts Built . | . . . Authchips . | . . . Time . | . . . Total Part Build Rating . | . . . Parts Repaired . | . . . Time . | . . . Parts Recycled . | . . . Recycled Matter . | . . . Retrieved Matter . | . . . Retrieved Components . | . . . Parts Scanalyzed . | . . . Part Schematics Acquired . | . . . Parts Damaged . | . . . Bothacking | -11 -10 -10 ------------ Run | Yrd Mat Min Used RIF Installer . | . . . Robots Hacked . | . . . Non-combat . | . . . Combat . | . . . Robot Hacks Applied . | . . . Relay Couplers Released . | . . . Fabnet Peak Effective % . | . . . Robots Rewired . | . . . Allies Hacked . | . . . Hacks Repelled . | . . . Allies | -11 -10 -10 -------- Run | Yrd Mat Min Total Allies . | . . . Largest Group . | . . . Highest-Rated Group . | . . . Highest-Rated Ally . | . . . Total Orders . | . . . Ally Attacks . | . . . Total Damage . | . . . Kills . | . . . Allies Corrupted . | . . . Allies Melted 1 | . . 1 Intel | -11 -10 -10 ------- Run | Yrd Mat Min Robot Analysis Total . | . . . Derelict Logs Recovered . | . . . Drone Launches . | . . . Drone Recoveries . | . . . Exploration | -11 -10 -10 ------------- Run | Yrd Mat Min Turns Passed 1015 | 78 552 385 Spaces Moved 555 | 46 280 229 Core 7 | 7 . . Treads 548 | 39 280 229 Legs . | . . . Wheels . | . . . Hover . | . . . Flight . | . . . Fastest Speed 50 | 50 160 160 Average Speed 158 | 143 160 160 Slowest Speed 160 | 160 160 160 Overloaded Moves . | . . . Propulsion Burnouts . | . . . Robots Hopped . | . . . Cave-ins Triggered . | . . . Exploration Rate (%) 35 | 4 46 56 Regions Visited 2 Branch Regions 1 Pre-discovered Areas . | . . . Known Exits Taken 1 | . 1 . Unknown Exits Taken 1 | 1 . . Scrap Searched . | . . . Spaces Dug . | . . . Terrain Destroyed . | . . . Melee . | . . . Projectile . | . . . AOE . | . . . Terrain Rammed . | . . . Walls Destroyed . | . . . Machines Disabled . | . . . Actions | -11 -10 -10 --------- Run | Yrd Mat Min Total 630 | 58 336 236 Wait 9 | . 9 . Move 553 | 45 279 229 Hop . | . . . Pick Up 19 | 7 12 . Fast Attach . | . . . Attach 10 | 6 4 . Detach . | . . . Swap 2 | . 2 . Drop 5 | . 5 . Fire 32 | . 25 7 Melee . | . . . Ram . | . . . Kick . | . . . Crush . | . . . Escape Stasis . | . . . Rewire . | . . . Trap . | . . . Miscellaneous . | . . . Route ------- -11/Scrapyard -10/Materials (discovered 2 exits: [*Mat] / *Min) -10/Mines History --------- Turn | Location | Event 6 | -11/Scrapyard | Discovered new exit (range 16) 79 | -11/Scrapyard | Entered Materials 322 | -10/Materials | Build established: Mutant 422 | -10/Materials | Discovered new exit (range 16) 603 | -10/Materials | Discovered new exit (range 8) 628 | -10/Materials | Identified exit to Mines 631 | -10/Materials | Entered Mines 639 | -10/Mines | Met a Derelict bent on vengeance 992 | -10/Mines | Assembled infested the area 997 | -10/Mines | Assisted by a Guerilla fighting off Assembled 1012 | -10/Mines | Core integrity fell below 50% 1016 | -10/Mines | Destroyed by as-97199 with Assembled Rifle Last Messages --------------- 00996_ 5T-M94(h): "I'll hold them off! Go on ahead or try to find another way!" 00996_ HV Slug penetrates as-44708. 00996_ as-44708 suffers critical hit (Destroy). 00996_ as-44708 destroyed. 00997_ A derelict emerges from the shadows: "You need to get out of here! I've been tracking a group of Assembled to figure out where they're coming from, and they're closing on this area, come on!" 01002_ HV Slug penetrates Wall. 01008_ 5T-M94(h) heat damages Bore Cannon. 01008_ 5T-M94(h) shuts down. 01008_ 5T-M94(h) critical meltdown. 01008_ Signal Interpreter destroyed. 01008_ System corrupted by crushing effect (+1). 01010_ K-01 Serf collects debris. 01011_ Lgt. Treads destroyed. 01013_ as-18660 destroyed. 01015_ Critical hit (Destroy). 01015_ Assault Rifle destroyed. 01016_ K-01 Serf collects debris. Map ----- +----------------------------------------------------+ | # #??##### ##??????????????????? | | # #### ##?????????????????? | | #?????????????????? | | % #?????????????????? | | ##### ### ## % ##??#####???###???? | | #???#######?######### #### #### ##??? | | #???????????????????## ## #??? | | ####?????????????????## #??? | | # ##?????????????????### #??? | | ##??????????????????###### ##??? | | ####????????????????????## ##???? | | #?????????????????????## #????? | | ##????????????????#####?## ##????? | | ####??????###???????## #### ##?????? | | ##????????## ????#### ## ##??????? | | #????????## ??## ##???????? | | #???????# ### ##????????? | | ??????# ###?????????? | | ## ?????# ## ##???????????? | | ??# ####????### #### ##????????????? | | #??# ##?????????### ##?####?????????????? | | ????###????????????## #??????????????????? | | ????????????????????## #??????????????????? | | ?????????????????????## r##??????????????????? | | ??????????????????????###k##??????????????????? | | ???????????????????????##@ #??????????????????? | | ???????????????????????#aaa#??????????????????? | | ??????????????????????# a #??????????????????? | | ?????????????????????# aa ##??????????????????? | | ????????????????????# a##???????????????????? | | ??????????????????? #;?????????????????????? | | ?????????????????# a %#;?????????????????????? | | ?????????????????# ?????????????????????? | | ?????????????????# ?%%?????????????????????? | | ????????????????# "? #?????????????????????? | | ??????????????? #??a??????????????????????? | | #### ????????? #??# ??????????????????????? | | ???????? ##??? ??????????????????????? | | ???????????????? ??????????????????????? | | ?????????????????????? ???????????????????????? | | ??????????????????????????????????????????????? | | ??????????????????????????????????????????????? | | ??????????????????????????????????????????????? | | ??????????????????????????????????????????????? | | ??????????????????????????????????????????????? | | ??????????????????????????????????????????????? | | ??????????????????????????????????????????????? | | ??????????????????????????????????????????????? | | ??????????????????????????????????????????????? | | ??????????????????????????????????????????????? | +----------------------------------------------------+ Best States ------------- Heat Dissipation 39 Energy Generation 12 Energy Capacity 265 Matter Stores 300 Matter Capacity 300 Sight Range 16 Terrain Scan Density 10 Evasion (%) 40 Recoil Reduction 2 Item Schematics ----------------- None Robot Schematics ------------------ None Fabricated ------------ Nothing Alien Tech Used ----------------- None Achievements -------------- None Challenges ------------ None Game ------ Seed MeleeCommSpoofer Manual? 0 Play Time 00:07:24 Cumulative 4.6 hours Start 2024.03.31 @ 22:55:01 End 2024.03.31 @ 23:00:43 Sessions 1 Manual Loads 0 Difficulty Rogue Special Mode None Game No. 16 Rogue 13 Adventurer 3 Explorer 0 Win Type - Total 0 Types 0/0/0/0/0/0/0/0/0 Lore% 13 Gallery% 7 Achievement% 10 Wizard Run 0 Options --------- Layout 1 ASCII 0 Keyboard 0 Movement Mouse Keybinds 0 Fullscreen 1 Font 32/SmallcapsGlow Map View 77x35 Zoom Use 0% Tactical HUD 1 Map Filters NONE Filters NONE Steam 1 RUN: 809ccd6e-7286-4167-a724-a0c1cb601e1b